fUST/lending_fUST_20241120
["ID","MTS","AMOUNT","RATE_DAILY","PERIOD"]
[342742348,1732096236324,-500.0,0.00021917,7]
[342742349,1732096236334,-540.2,0.00021917,7]
[342742350,1732096236343,-595.84902,0.00021917,2]
[342742351,1732096236353,-500.0,0.00021917,7]
[342742352,1732096236362,-595.84902,0.00021917,2]
[342742353,1732096236373,-595.84902,0.00021917,2]
[342742354,1732096236442,-595.84902,0.00021917,2]
[342742355,1732096236452,-595.84902,0.00021917,2]
[342742356,1732096236461,-170.10512277,0.00021917,7]
[342742357,1732096236474,-500.0,0.00021917,7]
[342742358,1732096236483,-846.39,0.00021917,7]
[342742359,1732096236492,-326.482274,0.00021917,2]
[342742360,1732096236501,-576.70207168,0.00021917,7]
[342742361,1732096236509,-326.482274,0.00021917,2]
[342742362,1732096236519,-326.482274,0.00021917,2]
[342742363,1732096236527,-326.482274,0.00021917,2]
[342742364,1732096236541,-326.482274,0.00021917,2]
[342742365,1732096236551,-151.0,0.00021917,2]
[342742366,1732096236559,-326.482274,0.00021917,2]
[342742367,1732096236569,-151.0,0.00021917,2]
[342742368,1732096236578,-326.482274,0.00021917,2]
[342742369,1732096236586,-151.0,0.00021917,2]
[342742370,1732096236596,-151.0,0.00021917,2]
[342742371,1732096236605,-151.0,0.00021917,2]
[342742372,1732096236614,-326.482274,0.00021917,2]
[342742373,1732096236624,-326.482274,0.00021917,2]
[342742374,1732096236633,-326.482274,0.00021917,2]
[342742375,1732096236642,-500.0,0.00021917,7]
[342742376,1732096236651,-326.482274,0.00021917,2]
[342742377,1732096236661,-500.0,0.00021917,7]
[342742378,1732096236670,-326.482274,0.00021917,2]
[342742379,1732096236679,-500.0,0.00021917,7]
[342742380,1732096236688,-326.482274,0.00021917,2]
[342742381,1732096236697,-326.482274,0.00021917,2]
[342742382,1732096236706,-500.0,0.00021917,7]
[342742383,1732096236718,-500.0,0.00021917,7]
[342742384,1732096236727,-500.0,0.00021917,7]
[342742385,1732096236736,-500.0,0.00021917,7]
[342742386,1732096236745,-500.0,0.00021917,7]
[342742387,1732096236755,-505.63532416,0.00021917,7]
[342742388,1732096236764,-500.0,0.00021917,7]
[342742389,1732096236776,-500.0,0.00021917,7]
[342742390,1732096236790,-500.0,0.00021917,7]
[342742391,1732096236801,-501.81785055,0.00021917,7]
[342742392,1732096236811,-500.0,0.00021917,7]
[342742393,1732096236820,-543.92,0.00021917,7]
[342742394,1732096236829,-500.0,0.00021917,7]
[342742395,1732096236838,-500.0,0.00021917,7]
[342742396,1732096236848,-500.0,0.00021917,7]
[342742397,1732096236858,-500.0,0.00021917,7]
[342742398,1732096236867,-500.0,0.00021917,7]
[342742399,1732096236876,-502.7591421,0.00021917,7]
[342742400,1732096236885,-500.0,0.00021917,7]
[342742401,1732096236896,-246.691717,0.00021917,7]
[342742402,1732096236905,-500.0,0.00021917,7]
[342742403,1732096236914,-532.58,0.00021917,7]
[342742404,1732096236923,-151.0,0.00021917,2]
[342742405,1732096236934,-151.0,0.00021917,2]
[342742406,1732096236943,-151.0,0.00021917,2]
[342742407,1732096236953,-267.49518259,0.00021917,7]
[342742408,1732096236962,-151.0,0.00021917,2]
[342742409,1732096236974,-151.0,0.00021917,2]
[342742410,1732096236983,-500.0,0.00021917,7]
[342742411,1732096236992,-500.0,0.00021917,7]
[342742412,1732096237001,-151.0,0.00021917,2]
[342742413,1732096237011,-500.0,0.00021917,7]
[342742414,1732096237020,-164.094468,0.00021917,2]
[342742415,1732096237030,-500.0,0.00021917,7]
[342742416,1732096237039,-419.59517395,0.00021917,7]
[342742417,1732096237049,-786.24,0.00021917,7]
[342742418,1732096237058,-674.225132,0.00021917,2]
[342742419,1732096237068,-674.225132,0.00021917,2]
[342742420,1732096237081,-674.225132,0.00021917,2]
[342742421,1732096237091,-500.0,0.00021917,7]
[342742422,1732096237100,-674.225132,0.00021917,2]
[342742423,1732096237110,-674.225132,0.00021917,2]
[342742424,1732096237122,-500.0,0.00021917,7]
[342742425,1732096237133,-674.225132,0.00021917,2]
[342742426,1732096237142,-674.225132,0.00021917,2]
[342742427,1732096237152,-211.15561462,0.00021917,7]
[342742428,1732096237169,-674.225132,0.00021917,2]
[342742429,1732096237179,-500.0,0.00021917,7]
[342742430,1732096237187,-508.32285136,0.00021917,7]
[342742431,1732096237196,-674.225132,0.00021917,2]
[342742432,1732096237205,-674.225132,0.00021917,2]
[342742433,1732096237214,-500.0,0.00021917,7]
[342742434,1732096237226,-500.0,0.00021917,2]
[342742435,1732096237235,-500.0,0.00021917,7]
[342742436,1732096237244,-500.0,0.00021917,7]
[342742437,1732096237254,-519.31366576,0.00021917,7]
[342742438,1732096237263,-500.0,0.00021917,7]
[342742439,1732096237272,-500.0,0.00021917,7]
[342742440,1732096237281,-670.4,0.00021917,7]
[342742441,1732096237291,-502.05261474,0.00021917,7]
[342742442,1732096237300,-500.0,0.00021917,7]
[342742443,1732096237308,-502.99020376,0.00021917,7]
[342742444,1732096237317,-500.0,0.00021917,7]
[342742445,1732096237327,-500.0,0.00021917,7]
[342742446,1732096237335,-503.56183855,0.00021917,7]
[342742447,1732096237345,-500.0,0.00021917,7]
[342742448,1732096237354,-500.0,0.00021917,7]
[342742449,1732096237363,-754.7,0.00021917,7]
[342742450,1732096237372,-754.7,0.00021917,7]
[342742451,1732096237381,-754.7,0.00021917,7]
[342742452,1732096237390,-754.7,0.00021917,7]
[342742453,1732096237399,-754.7,0.00021917,7]
[342742454,1732096237409,-501.24213825,0.00021917,7]
[342742455,1732096237418,-754.7,0.00021917,7]
[342742456,1732096237427,-500.0,0.00021917,7]
[342742457,1732096237437,-417.25906877,0.00021917,7]
[342742458,1732096237732,-83.75184385,0.00021917,7]
[342742459,1732096237742,-476.82171489,0.00021917,7]
[342742460,1732096237751,-226.928565,0.00021917,2]
[342742461,1732096237760,-151.0,0.00021917,2]
[342742462,1732096237769,-226.928565,0.00021917,2]
[342742463,1732096237779,-151.0,0.00021917,2]
[342742464,1732096237789,-226.928565,0.00021917,2]
[342742465,1732096237798,-500.0,0.00021917,7]
[342742466,1732096237806,-151.0,0.00021917,2]
[342742467,1732096237816,-226.928565,0.00021917,2]
[342742468,1732096237825,-176.68354,0.00021917,2]
[342742469,1732096237834,-754.7,0.00021917,7]
[342742471,1732096237843,-226.928565,0.00021917,2]
[342742473,1732096237853,-754.7,0.00021917,7]
[342742474,1732096237861,-754.7,0.00021917,7]
[342742475,1732096237870,-754.7,0.00021917,7]
[342742476,1732096237879,-500.41633874,0.00021917,7]
[342742477,1732096237888,-754.7,0.00021917,7]
[342742478,1732096237897,-754.7,0.00021917,7]
[342742479,1732096237906,-1444.567835,0.00021917,2]
[342742480,1732096237915,-1001.14,0.00021917,7]
[342742481,1732096237924,-568.37,0.00021917,7]
[342742482,1732096237933,-1444.567835,0.00021917,2]
[342742483,1732096237942,-440.37866351,0.00021917,7]
[342742504,1732096238483,-314.32133649,0.00021917,7]
[342742505,1732096238493,-754.7,0.00021917,7]
[342742506,1732096238502,-1444.567835,0.00021917,2]
[342742507,1732096238511,-226.928565,0.00021917,2]
[342742508,1732096238521,-754.7,0.00021917,7]
[342742509,1732096238530,-1444.567835,0.00021917,2]
[342742510,1732096238540,-754.7,0.00021917,7]
[342742511,1732096238549,-226.928565,0.00021917,2]
[342742512,1732096238559,-491.85222381,0.00021917,7]
[342742513,1732096238568,-1444.567835,0.00021917,2]
[342742514,1732096238578,-754.7,0.00021917,7]
[342742515,1732096238587,-226.928565,0.00021917,2]
[342742516,1732096238597,-226.928565,0.00021917,2]
[342742517,1732096238606,-754.7,0.00021917,7]
[342742518,1732096238615,-226.928565,0.00021917,2]
[342742519,1732096238624,-754.7,0.00021917,7]
[342742520,1732096238634,-754.7,0.00021917,7]
[342742521,1732096238643,-754.7,0.00021917,7]
[342742522,1732096238652,-500.0,0.00021917,7]
[342742523,1732096238662,-500.8372437,0.00021917,7]
[342742524,1732096238671,-754.7,0.00021917,7]
[342742525,1732096238681,-754.7,0.00021917,7]
[342742526,1732096238690,-500.0,0.00021917,7]
[342742527,1732096238699,-754.79791084,0.00021917,7]
[342742528,1732096238709,-1444.567835,0.00021917,2]
[342742529,1732096238718,-501.64474489,0.00021917,7]
[342742530,1732096238728,-1444.567835,0.00021917,2]
[342742531,1732096238737,-1444.567835,0.00021917,2]
[342742532,1732096238746,-500.0,0.00021917,7]
[342742536,1732096238766,-1444.567835,0.00021917,2]
[342742538,1732096238778,-1444.567835,0.00021917,2]
[342742540,1732096238788,-633.9840778,0.00021917,7]
[342742541,1732096238798,-500.0,0.00021917,7]
[342742542,1732096238809,-502.79349263,0.00021917,7]
[342742543,1732096238819,-500.0,0.00021917,7]
[342742544,1732096238828,-500.0,0.00021917,7]
[342742545,1732096238839,-500.0,0.00021917,7]
[342742546,1732096238848,-500.0,0.00021917,7]
[342742547,1732096238860,-500.0,0.00021917,7]
[342742548,1732096238870,-500.0,0.00021917,7]
[342742549,1732096238880,-151.0,0.00021917,2]
[342742550,1732096238891,-151.0,0.00021917,2]
[342742551,1732096238901,-151.0,0.00021917,2]
[342742552,1732096238911,-151.0,0.00021917,2]
[342742553,1732096238921,-285.685111,0.00021917,2]
[342742554,1732096238932,-500.0,0.00021917,7]
[342742555,1732096238942,-500.0,0.00021917,7]
[342742556,1732096238952,-204.900234,0.00021917,2]
[342742557,1732096238962,-500.0,0.00021917,7]
[342742558,1732096238974,-204.900234,0.00021917,2]
[342742559,1732096238984,-204.900234,0.00021917,2]
[342742560,1732096238994,-204.900234,0.00021917,2]
[342742561,1732096239004,-204.900234,0.00021917,2]
[342742562,1732096239014,-204.900234,0.00021917,2]
[342742563,1732096239024,-204.900234,0.00021917,2]
[342742564,1732096239034,-500.0,0.00021917,7]
[342742565,1732096239043,-500.0,0.00021917,7]
[342742566,1732096239054,-500.0,0.00021917,7]
[342742567,1732096239064,-500.0,0.00021917,7]
[342742568,1732096239074,-500.0,0.00021917,7]
[342742569,1732096239085,-204.900234,0.00021917,2]
[342742570,1732096239097,-204.900234,0.00021917,2]
[342742571,1732096239107,-204.900234,0.00021917,2]
[342742572,1732096239117,-204.900234,0.00021917,2]
[342742573,1732096239126,-204.900234,0.00021917,2]
[342742574,1732096239137,-204.900234,0.00021917,2]
[342742575,1732096239147,-204.900234,0.00021917,2]
[342742576,1732096239156,-500.0,0.00021917,7]
[342742577,1732096239168,-557.92604914,0.00021917,7]
[342742578,1732096239178,-500.0,0.00021917,7]
[342742579,1732096239187,-500.0,0.00021917,7]
[342742580,1732096239196,-500.0,0.00021917,7]
[342742581,1732096239206,-500.0,0.00021917,7]
[342742582,1732096239216,-233.8040647,0.00021917,7]
[342742583,1732096239235,-275.31403527,0.00021917,7]
[342742584,1732096239244,-500.0,0.00021917,7]
[342742585,1732096239253,-500.0,0.00021917,7]
[342742586,1732096239264,-500.0,0.00021917,7]
[342742587,1732096239274,-500.0,0.00021917,7]
[342742588,1732096239284,-500.0,0.00021917,7]
[342742589,1732096239294,-500.0,0.00021917,7]
[342742590,1732096239303,-500.0,0.00021917,7]
[342742591,1732096239313,-302.95818384,0.00021917,7]
[342742592,1732096239323,-500.31054521,0.00021917,7]
[342742593,1732096239333,-500.0,0.00021917,7]
[342742594,1732096239343,-506.40373721,0.00021917,7]
[342742595,1732096239353,-392.31438459,0.00021917,7]
[342742596,1732096239362,-500.0,0.00021917,7]
[342742597,1732096239373,-820.02,0.00021917,7]
[342742598,1732096239382,-500.0,0.00021917,7]
[342742599,1732096239394,-192.35622344,0.00021917,7]
[342742600,1732096239478,-500.0,0.00021917,7]
[342742601,1732096239493,-500.0,0.00021917,7]
[342742602,1732096239503,-501.08911138,0.00021917,7]
[342742603,1732096239512,-402.33712635,0.00021917,7]
[342742604,1732096239526,-111.64405238,0.00021917,7]
[342742605,1732096239535,-500.0,0.00021917,7]
[342742606,1732096239545,-180.98018161,0.00021917,7]
[342742607,1732096239555,-500.0,0.00021917,7]
[342742608,1732096239564,-500.0,0.00021917,7]
[342742609,1732096239577,-603.644895,0.00021917,2]
[342742610,1732096239586,-603.644895,0.00021917,2]
[342742611,1732096239596,-603.644895,0.00021917,2]
[342742612,1732096239605,-603.644895,0.00021917,2]
[342742613,1732096239615,-603.644895,0.00021917,2]
[342742614,1732096239624,-500.0,0.00021917,7]
[342742615,1732096239633,-603.644895,0.00021917,2]
[342742616,1732096239643,-603.644895,0.00021917,2]
[342742617,1732096239653,-603.644895,0.00021917,2]
[342742618,1732096239663,-597.6792654,0.00021917,2]
[342742623,1732096240465,-5.9656296,0.00021917,2]
[342742624,1732096240476,-594.16074607,0.00021917,2]
[342742625,1732096240502,-9.48414893,0.00021917,2]
[342742626,1732096240520,-500.0,0.00021917,7]
[342742627,1732096240540,-8.53784307,0.00021917,7]
[342742628,1732096240566,-491.46215693,0.00021917,7]
[342742629,1732096240584,-2.06254249,0.00021917,7]
[342742630,1732096240606,-497.93745751,0.00021917,7]
[342742631,1732096240622,-500.0,0.00021917,7]
[342742632,1732096240639,-500.0,0.00021917,7]
[342742633,1732096240658,-151.0,0.00021917,2]
[342742634,1732096240677,-486.68260562,0.00021917,7]
[342742635,1732096240694,-13.31739438,0.00021917,7]
[342742636,1732096240715,-293.871816,0.00021917,2]
[342742637,1732096240731,-364.59015797,0.00021917,2]
[342742646,1732096243590,-1601.93912488,0.00021916,2]
[342742648,1732096243750,-454.94078638,0.00021916,2]
[342742649,1732096243761,-135.40984203,0.00021917,2]
[342742650,1732096243771,-500.0,0.00021917,7]
[342742651,1732096243780,-500.0,0.00021917,7]
[342742652,1732096243790,-500.0,0.00021917,7]
[342742653,1732096243799,-500.0,0.00021917,7]
[342742654,1732096243808,-500.0,0.00021917,7]
[342742655,1732096243818,-500.0,0.00021917,7]
[342742656,1732096243828,-500.0,0.00021917,7]
[342742657,1732096243837,-756.27,0.00021917,7]
[342742658,1732096243846,-881.74,0.00021917,7]
[342742659,1732096243858,-500.0,0.00021917,7]
[342742660,1732096243867,-500.0,0.00021917,7]
[342742661,1732096243876,-500.0,0.00021917,7]
[342742662,1732096243886,-500.0,0.00021917,2]
[342742663,1732096243896,-500.0,0.00021917,7]
[342742664,1732096243906,-236.14073131,0.00021917,7]
[342742665,1732096243917,-500.0,0.00021917,7]
[342742666,1732096243926,-500.0,0.00021917,7]
[342742667,1732096243935,-151.0,0.00021917,2]
[342742668,1732096243945,-151.0,0.00021917,2]
[342742669,1732096243954,-156.918035,0.00021917,2]
[342742670,1732096243964,-500.0,0.00021917,7]
[342742671,1732096243973,-500.0,0.00021917,7]
[342742672,1732096243983,-151.0,0.00021917,2]
[342742673,1732096243992,-500.0,0.00021917,7]
[342742674,1732096244001,-151.0,0.00021917,2]
[342742675,1732096244010,-153.047382,0.00021917,2]
[342742676,1732096244019,-500.0,0.00021917,7]
[342742677,1732096244028,-500.0,0.00021917,7]
[342742678,1732096244037,-500.0,0.00021917,7]
[342742679,1732096244046,-500.0,0.00021917,7]
[342742680,1732096244055,-500.0,0.00021917,7]
[342742681,1732096244065,-500.0,0.00021917,7]
[342742682,1732096244074,-500.0,0.00021917,7]
[342742683,1732096244084,-506.98317721,0.00021917,7]
[342742684,1732096244098,-500.0,0.00021917,7]
[342742685,1732096244107,-518.59238116,0.00021917,7]
[342742686,1732096244118,-744.92,0.00021917,7]
[342742687,1732096244129,-501.41772961,0.00021917,7]
[342742688,1732096244138,-500.0,0.00021917,7]
[342742689,1732096244148,-500.0,0.00021917,7]
[342742690,1732096244157,-500.0,0.00021917,7]
[342742691,1732096244169,-500.0,0.00021917,7]
[342742692,1732096244179,-500.0,0.00021917,7]
[342742693,1732096244188,-500.0,0.00021917,7]
[342742694,1732096244198,-500.0,0.00021917,7]
[342742695,1732096244208,-500.0,0.00021917,7]
[342742696,1732096244217,-500.0,0.00021917,7]
[342742697,1732096244228,-501.25630633,0.00021917,7]
[342742698,1732096244238,-529.16519775,0.00021917,7]
[342742699,1732096244248,-500.0,0.00021917,7]
[342742700,1732096244257,-500.0,0.00021917,7]
[342742701,1732096244267,-628.78430385,0.00021917,7]
[342742702,1732096244276,-500.0,0.00021917,7]
[342742703,1732096244286,-500.0,0.00021917,7]
[342742704,1732096244295,-500.0,0.00021917,7]
[342742705,1732096244305,-500.0,0.00021917,7]
[342742706,1732096244314,-500.0,0.00021917,7]
[342742707,1732096244324,-500.0,0.00021917,7]
[342742708,1732096244333,-500.0,0.00021917,7]
[342742709,1732096244342,-1138.28,0.00021917,7]
[342742710,1732096244352,-500.0,0.00021917,7]
[342742711,1732096244361,-500.0,0.00021917,7]
[342742712,1732096244370,-500.0,0.00021917,7]
[342742713,1732096244379,-500.0,0.00021917,7]
[342742714,1732096244388,-500.0,0.00021917,7]
[342742715,1732096244398,-516.62,0.00021917,7]
[342742716,1732096244408,-500.0,0.00021917,7]
[342742717,1732096244418,-500.0,0.00021917,7]
[342742718,1732096244427,-500.0,0.00021917,7]
[342742719,1732096244437,-500.0,0.00021917,7]
[342742720,1732096244446,-15716.81972077,0.00021917,7]
[342742725,1732096246337,-455.41,0.00021907,3]
[342742726,1732096246346,-4.05008162,0.00021917,7]
[342742727,1732096246416,-6804.59019761,0.00021917,7]
[342742728,1732096246425,-500.0,0.00021917,7]
[342742729,1732096246435,-500.0,0.00021917,7]
[342742730,1732096246444,-382.25913951,0.00021917,7]
[342742731,1732096246454,-500.0,0.00021917,7]
[342742732,1732096246463,-504.72181577,0.00021917,7]
[342742733,1732096246473,-128.22884711,0.00021917,7]
[342742734,1732096246488,-345.81886338,0.00021917,7]
[342742735,1732096246498,-500.0,0.00021917,7]
[342742736,1732096246507,-151.0,0.00021917,2]
[342742737,1732096246516,-151.0,0.00021917,2]
[342742738,1732096246525,-151.0,0.00021917,2]
[342742739,1732096246534,-151.0,0.00021917,2]
[342742740,1732096246543,-151.0,0.00021917,2]
[342742741,1732096246552,-500.0,0.00021917,7]
[342742742,1732096246561,-151.0,0.00021917,2]
[342742743,1732096246570,-500.0,0.00021917,7]
[342742744,1732096246579,-151.0,0.00021917,2]
[342742745,1732096246589,-151.0,0.00021917,2]
[342742746,1732096246599,-500.0,0.00021917,7]
[342742747,1732096246608,-1958.46,0.00021917,7]
[342742748,1732096246617,-243.97384578,0.00021917,7]
[342742749,1732096246626,-172.108049,0.00021917,2]
[342742750,1732096246635,-500.0,0.00021917,7]
[342742751,1732096246644,-500.0,0.00021917,7]
[342742752,1732096246655,-500.0,0.00021917,7]
[342742753,1732096246664,-500.0,0.00021917,7]
[342742754,1732096246673,-500.0,0.00021917,7]
[342742755,1732096246682,-204.64384773,0.00021917,7]
[342742756,1732096246691,-500.0,0.00021917,7]
[342742757,1732096246700,-500.0,0.00021917,7]
[342742758,1732096246709,-500.0,0.00021917,7]
[342742759,1732096246718,-500.69607877,0.00021917,2]
[342742760,1732096246727,-500.0,0.00021917,7]
[342742761,1732096246738,-710.99911795,0.00021917,2]
[342742762,1732096246751,-1535.77770705,0.00021917,2]
[342742763,1732096246760,-2246.776825,0.00021917,2]
[342742764,1732096246769,-2919.34,0.00021917,7]
[342742765,1732096246778,-2246.776825,0.00021917,2]
[342742766,1732096246787,-2246.776825,0.00021917,2]
[342742767,1732096246796,-2246.776825,0.00021917,2]
[342742768,1732096246805,-2246.776825,0.00021917,2]
[342742769,1732096246882,-514.64507183,0.00021917,7]
[342742770,1732096246892,-1762.15,0.00021917,7]
[342742771,1732096246901,-2246.776825,0.00021917,2]
[342742772,1732096246913,-2246.776825,0.00021917,2]
[342742773,1732096246923,-2246.776825,0.00021917,2]
[342742774,1732096246933,-231.64913833,0.00021917,7]
[342742775,1732096246943,-2246.776825,0.00021917,2]
[342742776,1732096246953,-2246.776825,0.00021917,2]
[342742777,1732096246962,-2246.776825,0.00021917,2]
[342742778,1732096246971,-2246.776825,0.00021917,2]
[342742779,1732096246983,-500.0,0.00021917,7]
[342742780,1732096246999,-2246.776825,0.00021917,2]
[342742781,1732096247008,-2246.776825,0.00021917,2]
[342742782,1732096247018,-500.0,0.00021917,7]
[342742783,1732096247027,-2246.776825,0.00021917,2]
[342742784,1732096247036,-500.0,0.00021917,7]
[342742785,1732096247045,-506.58093883,0.00021917,7]
[342742786,1732096247054,-500.0,0.00021917,7]
[342742787,1732096247064,-500.0,0.00021917,7]
[342742788,1732096247074,-500.0,0.00021917,7]
[342742789,1732096247087,-500.0,0.00021917,7]
[342742790,1732096247097,-500.0,0.00021917,7]
[342742791,1732096247106,-503.10972462,0.00021917,7]
[342742792,1732096247114,-500.0,0.00021917,7]
[342742793,1732096247123,-500.0,0.00021917,7]
[342742794,1732096247132,-500.0,0.00021917,7]
[342742795,1732096247142,-576.33208689,0.00021917,7]
[342742796,1732096247151,-624.41,0.00021917,7]
[342742797,1732096247162,-504.37306037,0.00021917,7]
[342742798,1732096247171,-502.35957421,0.00021917,7]
[342742799,1732096247180,-580.37,0.00021917,7]
[342742800,1732096247189,-500.0,0.00021917,7]
[342742801,1732096247199,-500.0,0.00021917,7]
[342742802,1732096247208,-500.0,0.00021917,7]
[342742803,1732096247217,-500.0,0.00021917,7]
[342742804,1732096247226,-500.0,0.00021917,7]
[342742805,1732096247236,-1153.93,0.00021917,7]
[342742806,1732096247245,-200.0,0.00021917,7]
[342742807,1732096247255,-503.83670144,0.00021917,7]
[342742808,1732096247264,-500.0,0.00021917,7]
[342742809,1732096247274,-817.9,0.00021917,7]
[342742810,1732096247283,-500.0,0.00021917,7]
[342742811,1732096247293,-500.0,0.00021917,7]
[342742812,1732096247302,-500.0,0.00021917,7]
[342742813,1732096247312,-500.0,0.00021917,7]
[342742814,1732096247321,-500.0,0.00021917,7]
[342742815,1732096247331,-500.0,0.00021917,7]
[342742816,1732096247341,-500.0,0.00021917,7]
[342742817,1732096247351,-469.81208026,0.00021917,7]
[342742818,1732096247361,-500.0,0.00021917,7]
[342742819,1732096247370,-500.0,0.00021917,7]
[342742820,1732096247380,-500.0,0.00021917,7]
[342742821,1732096247390,-265.39860096,0.00021917,7]
[342742822,1732096247400,-500.0,0.00021917,7]
[342742823,1732096247410,-500.0,0.00021917,7]
[342742824,1732096247420,-500.0,0.00021917,7]
[342742825,1732096247429,-500.0,0.00021917,7]
[342742826,1732096247439,-500.0,0.00021917,7]
[342742827,1732096247448,-886.52,0.00021917,7]
[342742828,1732096247458,-500.0,0.00021917,7]
[342742829,1732096247467,-732.71,0.00021917,7]
[342742830,1732096247477,-500.0,0.00021917,7]
[342742831,1732096247491,-500.0,0.00021917,7]
[342742832,1732096247501,-830.2,0.00021917,7]
[342742833,1732096247510,-500.0,0.00021917,7]
[342742834,1732096247519,-1269.757666,0.00021917,2]
[342742835,1732096247529,-1269.757666,0.00021917,2]
[342742836,1732096247538,-500.0,0.00021917,7]
[342742837,1732096247547,-1269.757666,0.00021917,2]
[342742838,1732096247556,-500.0,0.00021917,7]
[342742839,1732096247565,-500.0,0.00021917,7]
[342742840,1732096247574,-1269.757666,0.00021917,2]
[342742841,1732096247583,-1269.757666,0.00021917,2]
[342742842,1732096247592,-1269.757666,0.00021917,2]
[342742843,1732096247601,-500.0,0.00021917,7]
[342742844,1732096247610,-1269.757666,0.00021917,2]
[342742845,1732096247619,-500.0,0.00021917,7]
[342742846,1732096247628,-1269.757666,0.00021917,2]
[342742847,1732096247638,-500.0,0.00021917,7]
[342742848,1732096247647,-556.03,0.00021917,7]
[342742849,1732096247656,-1269.757666,0.00021917,2]
[342742850,1732096247666,-1269.757666,0.00021917,2]
[342742851,1732096247675,-1269.757666,0.00021917,2]
[342742852,1732096247685,-501.62969002,0.00021917,7]
[342742853,1732096247694,-588.19148419,0.00021917,7]
[342742854,1732096247704,-500.0,0.00021917,7]
[342742855,1732096247713,-1269.757666,0.00021917,2]
[342742856,1732096247723,-500.0,0.00021917,7]
[342742857,1732096247735,-613.812618,0.00021917,2]
[342742858,1732096247744,-1269.757666,0.00021917,2]
[342742859,1732096247754,-771.6,0.00021917,7]
[342742860,1732096247763,-613.812618,0.00021917,2]
[342742861,1732096247772,-1269.757666,0.00021917,2]
[342742862,1732096247782,-613.812618,0.00021917,2]
[342742863,1732096247791,-1269.757666,0.00021917,2]
[342742864,1732096247801,-613.812618,0.00021917,2]
[342742865,1732096247810,-503.81636849,0.00021917,7]
[342742866,1732096247819,-1269.757666,0.00021917,2]
[342742867,1732096247828,-613.812618,0.00021917,2]
[342742868,1732096247837,-501.14624829,0.00021917,7]
[342742869,1732096247847,-613.812618,0.00021917,2]
[342742870,1732096247856,-500.0,0.00021917,7]
[342742871,1732096247865,-613.812618,0.00021917,2]
[342742872,1732096247874,-500.0,0.00021917,7]
[342742873,1732096247883,-613.812618,0.00021917,2]
[342742874,1732096247892,-431.30744771,0.00021917,7]
[342742875,1732096247901,-500.0,0.00021917,7]
[342742876,1732096247910,-216.72639084,0.00021917,7]
[342742877,1732096443315,202.201053,0.00013973,2]
[342742882,1732096687037,10000.0,0.00026,60]
[342742889,1732097195208,192.091,0.00013973,2]
[342742953,1732097432757,-192.091,0.00020447,2]
[342742955,1732097432767,-481.2044941,0.00020905,2]
[342742957,1732097432777,-2240.6600783,0.00021051,2]
[342742959,1732097432786,-3974.9577329,0.00021676,2]
[342742961,1732097432798,-586.9474015,0.00021676,2]
[342742963,1732097432810,-515.25402673,0.00021676,2]
[342743018,1732097438753,-1504.90726,0.00021676,2]
[342743021,1732097438850,-445.2817103,0.00021676,2]
[342743022,1732097438860,-300.0,0.00021808,2]
[342743023,1732097438870,-300.0,0.00021808,2]
[342743024,1732097438879,-254.384,0.00021817,2]
[342743025,1732097438890,-315.51172163,0.00021817,2]